[Event "Charlotte Summer IM C 2022"]
[Site "Charlotte"]
[Date "2022.07.27"]
[Round "6.1"]
[White "Huston, Gus"]
[Black "Rodriguez Rivera, Pedro"]
[Result "1/2-1/2"]
[ECO "C10"]
[WhiteElo "2282"]
[BlackElo "2192"]
[Annotator "TA"]
[PlyCount "127"]
[EventDate "2022.07.24"]
[EventType "tourn"]
[EventCountry "USA"]
[SourceTitle "playchess.com"]
[Source "ChessBase"]
[SourceQuality "1"]
[TimeControl "5400+30"]

{[%evp 16,127,31,28,42,51,44,15,55,47,55,45,52,50,58,49,52,54,41,42,55,73,114,120,104,46,29,34,161,35,67,39,34,14,44,52,77,77,76,62,72,63,180,70,78,85,81,86,118,86,87,87,212,214,203,203,224,197,241,243,254,254,253,253,263,252,237,242,258,247,248,263,250,250,251,251,265,265,265,265,276,276,276,276,276,260,483,458,404,260,207,0,0,0,0,0,0,0,0,0,0,-8,-8,-6906,-7650,-29954,-29962,-29964,-29964,-452,-8,-8,-8,-8]} 1. e4 {[%emt 0:00:36]} e6 {[%emt 0:04:29]} 2. d4 {[%emt 0:00:02]} d5 {[%emt 0:00:16]} 3. Nd2 {[%emt 0:00:06]} dxe4 {[%emt 0:00:09]} 4. Nxe4 {[%emt 0:00:03]} Nd7 {[%emt 0:00:07]} 5. Nf3 {[%emt 0:00:26]} Ngf6 {[%emt 0:00:05]} 6. Bd3 {[%emt 0:00:26]} Be7 {[%emt 0:00:24]} 7. O-O {[%emt 0:00:09]} O-O {[%emt 0:00:16]} 8. Nxf6+ {[%emt 0:03:31]} Bxf6 {[%emt 0:03:22]} 9. c3 {[%emt 0:05:10]} b6 {[%emt 0:02:14] C10: French with 3 Nc3: Unusual Black 3rd moves and 3...dxe4.} 10. Qc2 {[%emt 0:07:11] [#]} h6 $146 {[%emt 0:01:42]} ({Predecessor:} 10... g6 11. Re1 Bb7 12. Bf4 Rc8 13. Be5 c5 14. Be4 Bxe4 15. Rxe4 cxd4 16. Rxd4 Qe8 17. Rxd7 Bxe5 18. Nxe5 {1-0 (40) Garcia Martinez,J (1757)-Pena Marina,J (1949) Tres Cantos 2009}) 11. Bh7+ {[%emt 0:02:53]} Kh8 {[%emt 0:00:06]} 12. Be4 {[%emt 0:00:14]} Rb8 {[%emt 0:00:11]} 13. Qe2 {[%emt 0:00:15]} Bb7 {[%emt 0:03:59]} 14. Bc2 {[%emt 0:00:03][%cal Oc1h6]} Re8 {[%emt 0:01:10]} 15. Bf4 {[%emt 0:02:34] Against e5} Rc8 {[%emt 0:01:04]} 16. Rad1 {[%emt 0:04:05]} Qe7 {[%emt 0:02:46]} 17. Rfe1 {[%emt 0:05:46]} Nf8 {[%emt 0:06:15]} 18. Ne5 {[%emt 0:10:04]} Red8 {[%emt 0:10:29]} 19. Qh5 {[%emt 0:01:56] 0x0.001e3cef5f53dp-1022s more active pieces.} Bxe5 {[%emt 0:20:42]} 20. dxe5 {[%emt 0:00:57]} (20. Rxe5 $16 {[%cal Of4h6] Strongly threatening Bxh6!} Nh7 21. Rde1) 20... Rxd1 $14 {[%emt 0:02:35]} 21. Rxd1 {[%emt 0:00:11][%cal Of4h6]} Kg8 {[%emt 0:01:21] [#]} (21... Rd8 $1 $14) 22. Qg4 {[%emt 0:09:58]} ({White must play} 22. Bxh6 $1 $18 {[%mdl 512]} Rd8 23. Rxd8 Qxd8 24. Qg5 Qxg5 25. Bxg5) 22... Rd8 {[%emt 0:06:54]} 23. Re1 {[%emt 0:06:39]} Kh8 {[%emt 0:01:10]} 24. Bc1 {[%emt 0:06:44]} Bc6 {[%emt 0:03:24]} 25. h4 {[%emt 0:01:56]} Nh7 {[%emt 0:09:30]} 26. Re3 {[%emt 0:01:52]} Rg8 {[%emt 0:00:14]} 27. b4 {[%emt 0:03:17]} Rd8 {[%emt 0:03:13]} 28. Rg3 $40 {[%emt 0:02:03][%csl Gg3][%cal Rg4g7][%mdl 128] White is up to no good.} Qf8 {[%emt 0:00:01]} ({Black should play} 28... f6 $14) 29. Kh2 {[%emt 0:01:32]} ({White should try} 29. Qc4 $18 Qe8 30. Qf4 (30. Qg4 Qf8 $16)) 29... f5 {[%emt 0:02:23]} 30. exf6 $1 {[%emt 0:01:26]} Nxf6 {[%emt 0:01:51]} 31. Qxe6 {[%emt 0:01:19]} Bd7 {[%emt 0:01:50]} 32. Qe2 {[%emt 0:01:43]} Re8 {[%emt 0:01:37]} 33. Qf3 {[%emt 0:02:06]} h5 {[%emt 0:00:54]} (33... Qe7 $16) 34. Rg5 $1 $18 {[%emt 0:02:12] Hoping for Rxh5+.} Ng4+ {[%emt 0:01:35]} 35. Kg3 {[%emt 0:00:14]} Qxf3+ {[%emt 0:00:05]} 36. Kxf3 {[%emt 0:01:10]} Rf8+ {[%emt 0:03:22]} 37. Kg3 {[%emt 0:00:31]} Nf6 {[%emt 0:07:15]} 38. Be3 {[%emt 0:18:10]} Be6 {[%emt 0:00:00]} 39. a4 {[%emt 0:00:30]} Bf7 {[%emt 0:01:00]} 40. Bd4 {[%emt 0:00:00]} Rd8 {[%emt 0:00:00]} 41. f3 {[%emt 0:00:00]} Rd5 {[%emt 0:00:00]} 42. Bxf6 {[%emt 0:00:00]} gxf6 {[%emt 0:00:00]} 43. Rxd5 {[%emt 0:00:00]} Bxd5 {[%emt 0:00:00][%mdl 4096] Endgame KB-KB} 44. Bg6 {[%emt 0:00:00]} a5 {[%emt 0:00:00]} 45. Bxh5 {[%emt 0:00:00] Be8 is the strong threat.} Bc6 {[%emt 0:00:00]} 46. bxa5 {[%emt 0:00:00]} bxa5 {[%emt 0:00:00]} 47. Kf4 {[%emt 0:00:00]} Kg7 {[%emt 0:04:00]} 48. Ke3 {[%emt 0:00:00]} Bxa4 {[%emt 0:00:00]} 49. Kd2 {[%emt 0:00:00]} Bb3 {[%emt 0:00:00]} 50. Kc1 {[%emt 0:00:00]} a4 $2 {[%emt 0:00:00]} (50... Kh6 51. Bg4 Kg6) 51. Kb2 {[%emt 0:00:00]} Bd1 {[%emt 0:00:00]} 52. Bg4 {[%emt 0:00:00] And now Bf5 would win.} Kg6 {[%emt 0:00:00]} 53. Ka3 $2 {[%emt 0:00:00]} (53. Kc1 $18 Bb3 54. Bd7 (54. Kb2 f5 $11)) 53... f5 $11 {[%emt 0:00:00]} 54. h5+ {[%emt 0:00:00]} (54. Bh3 $5 {[%cal Rf3f4]}) 54... Kf6 $1 {[%emt 0:00:00]} 55. Bh3 f4 {[%emt 0:04:00]} 56. Bd7 {[%emt 0:08:30]} Kg5 {[%emt 0:00:00]} 57. Be8 {[%emt 0:00:00]} Be2 {[%emt 0:00:00] aiming for ...Bf1.} 58. Kxa4 {[%emt 0:00:00]} Bf1 {[%emt 0:01:30]} 59. Bd7 $2 {[%emt 0:00:00][%mdl 8192]} (59. Bf7 $11) 59... Kxh5 $19 {[%emt 0:00:00]} 60. Bh3 {[%emt 0:00:00] [#]} Kh4 $1 {[%emt 0:00:00]} 61. g3+ {[%emt 0:00:53]} Kxh3 {[%emt 0:00:00]} 62. gxf4 {[%emt 0:00:02] [#]} Bd3 $2 {[%emt 0:00:00]} ({Better is} 62... Kh4 $1 $19 {( -> ...Be2)} 63. Kb4 Be2) 63. Kb4 $11 {[%emt 0:00:12]} Kg3 {[%emt 0:00:00]} 64. Kc5 {[%emt 0:00:02] Never resign too early!  Weighted Error Value: White=0.37/Black=0.23 (precise)} 1/2-1/2

[Event "Charlotte Summer IM C 2022"]
[Site "Charlotte"]
[Date "2022.07.27"]
[Round "6.2"]
[White "Wen, Tommy"]
[Black "Arjun, Vishnuvardhan"]
[Result "1/2-1/2"]
[ECO "B41"]
[WhiteElo "2040"]
[BlackElo "2273"]
[Annotator "TA"]
[PlyCount "68"]
[EventDate "2022.07.24"]
[EventType "tourn"]
[EventCountry "USA"]
[SourceTitle "playchess.com"]
[Source "ChessBase"]
[SourceQuality "1"]
[TimeControl "5400+30"]

{[%evp 11,68,35,36,48,41,4,45,31,53,-2,15,-12,-14,-61,0,0,0,0,0,-6,0,0,0,0,0,-31,-29,-29,-25,-15,-12,-26,-19,-26,-17,-34,-13,-62,-56,-56,-56,-59,-69,-57,-62,-44,-31,-35,-28,-28,-34,-20,-32,-38,-45,-77,46,-302,213]} 1. e4 {[%emt 0:03:27]} c5 {[%emt 0:01:20]} 2. Nf3 {[%emt 0:00:11]} e6 {[%emt 0:00:08]} 3. d4 {[%emt 0:00:06]} cxd4 {[%emt 0:00:09]} 4. Nxd4 {[%emt 0:00:06]} a6 {[%emt 0:00:12]} 5. c4 {[%emt 0:00:14]} Nf6 {[%emt 0:00:31]} 6. Nc3 {[%emt 0:00:03]} Bb4 {[%emt 0:00:18]} 7. Qd3 {[%emt 0:00:12] The modern move. B41: Sicilian: Kan Variation: 5 c4.} Qc7 {[%emt 0:01:59]} 8. Nc2 {[%emt 0:02:57]} (8. a3 $5 {[%cal Ra3b4]} Bxc3+ 9. Qxc3 $14 (9. bxc3 d6 $11)) 8... Bd6 {[%emt 0:00:44]} (8... Bxc3+ $5 9. Qxc3 O-O $11) 9. Be2 {[%emt 0:17:10] White is slightly better.} Nc6 {[%emt 0:05:55]} 10. Qh3 {[%emt 0:06:25] [#]} (10. Bg5 $14) 10... Be5 $146 {[%emt 0:11:18]} ({Predecessor:} 10... b6 11. O-O Bb7 12. f4 Bc5+ 13. Be3 h5 14. e5 Nxe5 15. fxe5 Qxe5 16. Bxc5 Qxc5+ {1-0 (45) Barski,R (2452)-Miezis,N (2434) Katowice 2017}) 11. O-O {[%emt 0:06:54]} O-O {[%emt 0:01:31][%cal Od7d5]} 12. Qh4 {[%emt 0:09:58]} (12. Bd3 $11 {is superior.}) 12... Bxc3 {[%emt 0:12:49]} ({Black should play} 12... Ne7 $15) 13. bxc3 $11 {[%emt 0:00:02]} Ne5 {[%emt 0:00:32]} 14. Qf4 {[%emt 0:07:01]} d6 {[%emt 0:02:45]} 15. Ba3 {[%emt 0:04:06]} Nxc4 {[%emt 0:07:40]} 16. Bxc4 {[%emt 0:00:35]} Qxc4 {[%emt 0:08:17]} 17. Qxd6 {[%emt 0:01:10][%csl Ga3][%cal Rd6f8] [#]} Re8 {[%emt 0:00:35]} 18. e5 {[%emt 0:01:46]} Ne4 {[%emt 0:02:57]} 19. Qd4 {[%emt 0:01:31]} Qxd4 {[%emt 0:00:29]} 20. cxd4 {[%emt 0:00:03]} b5 {[%emt 0:00:34][%cal Bb7b5,Bb5b4][%mdl 32]} 21. Rfe1 {[%emt 0:03:19]} Bb7 {[%emt 0:00:30]} 22. f3 {[%emt 0:03:47]} Nc3 {[%emt 0:04:23]} 23. Bc5 {[%emt 0:01:52]} Rec8 {[%emt 0:02:19]} 24. Nb4 {[%emt 0:00:53]} (24. Ne3 $11) 24... a5 {[%emt 0:01:22]} 25. Nd3 {[%emt 0:00:40]} b4 {[%emt 0:02:34]} 26. Kf2 {[%emt 0:03:51]} Na4 {[%emt 0:06:34]} 27. Rec1 {[%emt 0:03:43]} Ba6 {[%emt 0:02:49]} 28. Ke3 {[%emt 0:00:23]} Rc6 {[%emt 0:00:31]} 29. Bd6 {[%emt 0:06:10]} Rc3 {[%emt 0:02:59]} 30. Rxc3 {[%emt 0:00:11]} Nxc3 {[%emt 0:00:06]} 31. Kd2 {[%emt 0:01:39]} Nb5 {[%emt 0:06:32]} 32. Bc5 {[%emt 0:00:51]} Rd8 {[%emt 0:01:06]} 33. Bb6 {[%emt 0:00:39][%csl LRa5,LRd8] [#]} Rd7 {[%emt 0:14:32]} (33... Rd5 $1 $17 34. Nf4 Rd7) 34. Bxa5 $2 {[%emt 0:15:35][%mdl 8192]} (34. Nc5 $1 $14 {keeps the upper hand.} Rxd4+ 35. Ke3) 34... Rd5 $4 {[%mdl 8192] Weighted Error Value: White=0.28 (precise) /Black=0.14 (very precise)} ({Worse is} 34... Rxd4 35. Ke3 (35. Bxb4 $2 Nc7 $19) 35... Rd5 36. Nxb4 (36. Bxb4 Na3 $11) 36... Rxe5+ 37. Kf2 $11 (37. Kf4 Rf5+ 38. Ke3 Re5+ 39. Kf4 Rf5+ 40. Ke3 Re5+ $11)) (34... Nxd4 $19 {and life is good for Black.} 35. Bxb4 Bxd3) 1/2-1/2

[Event "Charlotte Summer IM C 2022"]
[Site "Charlotte"]
[Date "2022.07.27"]
[Round "6.3"]
[White "Venkat, Raghav"]
[Black "Girones Barrios, Yans Richard"]
[Result "1/2-1/2"]
[ECO "C47"]
[WhiteElo "2227"]
[BlackElo "2412"]
[Annotator "TA"]
[PlyCount "45"]
[EventDate "2022.07.24"]
[EventType "tourn"]
[EventCountry "USA"]
[SourceTitle "playchess.com"]
[Source "ChessBase"]
[SourceQuality "1"]
[TimeControl "5400+30"]

{[%evp 19,45,9,11,0,0,0,0,1,1,0,0,0,0,-12,-3,-8,0,0,54,48,41,0,0,0,0,0,0,0]} 1. e4 {[%emt 0:02:47]} e5 {[%emt 0:08:18]} 2. Nf3 {[%emt 0:00:08]} Nc6 {[%emt 0:00:34]} 3. Nc3 {[%emt 0:00:15]} Nf6 {[%emt 0:01:12]} 4. d4 {[%emt 0:00:25]} exd4 {[%emt 0:04:02]} 5. Nxd4 {[%emt 0:00:07]} Bb4 {[%emt 0:01:01]} 6. Nxc6 {[%emt 0:00:09]} bxc6 {[%emt 0:00:07]} 7. Bd3 {[%emt 0:00:07]} d5 {[%emt 0:00:29]} 8. exd5 {[%emt 0:01:28]} cxd5 {[%emt 0:00:08]} 9. O-O {[%emt 0:00:07]} O-O {[%emt 0:00:06]} 10. Bg5 {[%emt 0:00:43]} c6 {[%emt 0:00:09]} 11. h3 {[%emt 0:01:45] C47: Scotch Four Knights and Four Knights with 4 g3.} h6 {[%emt 0:03:01]} 12. Bf4 {[%emt 0:00:30]} Re8 {[%emt 0:00:52]} 13. Qf3 {[%emt 0:01:19]} Be6 {[%emt 0:04:59]} 14. Ne2 {[%emt 0:06:39]} Bd6 {[%emt 0:11:38]} 15. Rfd1 {[%emt 0:08:13]} Rb8 {[%emt 0:02:17]} 16. b3 {[%emt 0:00:58]} c5 {[%emt 0:00:24] [#]} 17. c3 $146 {[%emt 0:11:06]} ({Predecessor:} 17. Ng3 Bxf4 18. Qxf4 Rb4 19. Qf3 Qc7 20. Re1 a5 21. Nh5 Nxh5 22. Qxh5 Qd8 23. Rad1 {½-½ (35) Shpanko,N (2207)-Cherniaiev,T (2121) Lvov 2019}) 17... a5 {[%emt 0:09:14]} 18. Ng3 {[%emt 0:13:26]} d4 {[%emt 0:05:47]} (18... Qe7 $11) 19. Bxd6 $14 {[%emt 0:04:39]} Qxd6 {[%emt 0:00:11]} 20. Bc4 {[%emt 0:07:10]} Bxc4 {[%emt 0:06:37] The position is equal.} 21. bxc4 {[%emt 0:00:03]} Qe5 {[%emt 0:08:32]} 22. cxd4 {[%emt 0:00:30]} cxd4 {[%emt 0:00:06]} 23. Qf5 {[%emt 0:00:35] Weighted Error Value: White=0.05 (flawless) /Black=0.10 (very precise)} 1/2-1/2

[Event "Charlotte Summer IM C 2022"]
[Site "Charlotte"]
[Date "2022.07.27"]
[Round "6.4"]
[White "Rodrigue-Lemieux, Shawn"]
[Black "Adewumi, Tanitoluwa"]
[Result "1-0"]
[ECO "A26"]
[WhiteElo "2366"]
[BlackElo "2309"]
[Annotator "TA"]
[PlyCount "85"]
[EventDate "2022.07.24"]
[EventType "tourn"]
[EventCountry "USA"]
[SourceTitle "playchess.com"]
[Source "ChessBase"]
[SourceQuality "1"]
[TimeControl "5400+30"]

{[%evp 14,85,26,26,37,42,46,45,57,53,68,64,69,50,41,25,75,29,18,12,22,0,0,-68,-72,-64,-62,-59,-60,-59,-37,-45,-30,-26,-20,-20,0,0,0,0,12,-66,0,0,0,0,0,0,0,0,39,8,11,0,189,177,293,286,275,177,169,171,635,544,1769,1613,1519,1484,954,522,29971,29972,5214,5085]} 1. c4 {[%emt 0:00:02]} e5 {[%emt 0:00:20]} 2. g3 {[%emt 0:00:08]} Nc6 {[%emt 0:00:04]} 3. Bg2 {[%emt 0:00:11]} g6 {[%emt 0:00:06]} 4. Nc3 {[%emt 0:00:06]} Bg7 {[%emt 0:00:03]} 5. e4 {[%emt 0:00:12]} d6 {[%emt 0:00:24]} 6. Nge2 {[%emt 0:00:11]} Nf6 {[%emt 0:00:41]} 7. O-O {[%emt 0:00:15]} O-O {[%emt 0:00:23]} 8. d3 {[%emt 1:33:25]} Re8 {[%emt 0:12:58] 8...Nd7 is a critical line. A26: English Opening vs King's Indian with ...Nc6 and d3.} 9. Rb1 {[%emt 0:00:00]} a5 {[%emt 0:02:01] [#]} 10. b3 $146 {[%emt 0:00:00]} ({Predecessor:} 10. a3 Nh5 11. b4 axb4 12. axb4 Nd4 13. Nxd4 exd4 14. Ne2 Ra7 15. Bb2 c5 16. Qb3 {1-0 (29) Cohen,H-Carroll,W Mt Vernon 1999}) 10... Bd7 {[%emt 0:04:58] White is slightly better.} 11. h3 {[%emt 0:00:00]} h5 {[%emt 0:08:17]} 12. Be3 {[%emt 0:00:00]} Nh7 {[%emt 0:12:02]} 13. d4 {[%emt 0:00:00]} exd4 {[%emt 0:06:01]} 14. Nxd4 {[%emt 0:00:00]} Ng5 {[%emt 0:01:12]} (14... a4 $11) 15. h4 {[%emt 0:00:00]} (15. f4 $1 $16 {[%cal Rf4g5]} Nxh3+ 16. Kh2) 15... Ne6 $11 {[%emt 0:15:34][%cal Rc6d4]} 16. Nxc6 {[%emt 0:00:00]} bxc6 {[%emt 0:15:05]} 17. Rc1 {[%emt 0:00:00]} c5 {[%emt 0:02:09]} 18. Ne2 {[%emt 0:00:00]} (18. f4 $11) 18... a4 $15 {[%emt 0:02:59]} 19. Bd2 {[%emt 0:00:00]} axb3 {[%emt 0:00:12]} 20. axb3 {[%emt 0:00:00]} Bc6 {[%emt 0:02:54]} 21. Bc3 {[%emt 0:00:00]} Bxc3 {[%emt 0:03:38]} 22. Rxc3 {[%emt 0:00:00]} Nf8 {[%emt 0:00:25]} 23. Re3 {[%emt 0:00:00]} Nd7 {[%emt 0:00:20]} 24. Nc3 {[%emt 0:00:00]} Qf6 {[%emt 0:02:27]} 25. e5 {[%emt 0:00:00]} dxe5 {[%emt 0:05:03]} 26. Nd5 {[%emt 0:00:00]} Qd8 {[%emt 0:02:26] [#]} 27. Rd3 {[%emt 0:00:00]} (27. Ne7+ $1 $11 Rxe7 28. Bxc6) 27... Ra6 {[%emt 0:00:41]} (27... e4 $15 28. Rd2 Ra3) 28. Re1 $11 {[%emt 0:00:00]} Qb8 {[%emt 0:00:28]} 29. Nxc7 {[%emt 0:00:00]} Qxc7 {[%emt 0:00:20]} 30. Bxc6 {[%emt 0:00:00][%mdl 64] Remove Defender} Qxc6 {[%emt 0:00:19]} 31. Rxd7 {[%emt 0:00:00]} Rb6 {[%emt 0:00:58][%cal Ob6b3]} 32. Rd5 {[%emt 0:00:23]} e4 {[%emt 0:00:23]} 33. Qc2 {[%emt 0:00:21]} Kh7 $2 {[%emt 0:00:33]} (33... e3 $1 $11 {and Black has nothing to worry.}) 34. Rxe4 $18 {[%emt 0:00:27]} Kg8 {[%emt 0:00:35]} (34... Rxe4 {might work better.} 35. Qxe4 Kg7) 35. Rxe8+ {[%emt 0:04:27]} Qxe8 {[%emt 0:00:00]} 36. Rxc5 {[%emt 0:00:03][%mdl 4096] Endgame Strongly threatening Qc3. KQR-KQR} Qe1+ {[%emt 0:00:43] [#]} 37. Kg2 $1 {[%emt 0:00:02]} Ra6 $2 {[%emt 0:01:18]} (37... Qe7 38. Rd5 Qb7) 38. Rc8+ {[%emt 0:00:29]} Kh7 {[%emt 0:00:00]} 39. Qb2 {[%emt 0:00:32][%csl Gb2][%cal Rc8h8]} f6 {[%emt 0:00:00]} 40. Qd4 {[%emt 0:01:00] White threatens Qd7+ and mate.} Qe7 {[%emt 0:00:17] Against Qd7} 41. Qd8 {[%emt 0:01:25][%csl Gc8][%cal Rd8h8]} Qb7+ {[%emt 0:00:20]} 42. Kh2 {[%emt 0:00:33][%csl Gc8][%cal Rd8h8]} g5 {[%emt 0:00:02]} 43. Rc7+ {[%emt 0:00:38] Weighted Error Value: White=0.26 (precise) /Black=0.55} 1-0

[Event "Charlotte Summer IM C 2022"]
[Site "Charlotte"]
[Date "2022.07.27"]
[Round "6.5"]
[White "Luo, Terry"]
[Black "Xie, Bryan"]
[Result "1-0"]
[ECO "D21"]
[WhiteElo "2204"]
[BlackElo "2191"]
[Annotator "TA"]
[PlyCount "85"]
[EventDate "2022.07.24"]
[EventType "tourn"]
[EventCountry "USA"]
[SourceTitle "playchess.com"]
[Source "ChessBase"]
[SourceQuality "1"]
[TimeControl "5400+30"]

{[%evp 9,85,-3,-10,0,31,35,41,29,24,17,19,25,33,0,5,6,6,8,41,52,39,39,65,62,222,103,120,102,229,221,225,209,225,202,206,207,252,222,212,214,227,189,296,291,301,293,289,153,117,93,282,30,24,25,22,0,10,50,165,145,146,136,228,219,187,184,912,909,913,890,812,828,4996,1119,1106,1074,29974,29974]} 1. d4 {[%emt 1:31:00]} d5 {[%emt 0:00:17][%cal Bd7d5,Bd5c4][%mdl 32]} 2. c4 {[%emt 0:00:00]} e6 {[%emt 0:00:08]} 3. Nf3 {[%emt 0:00:00][%cal Bg1f3,Bf3d4,Bd4b3][%mdl 32]} dxc4 {[%emt 0:00:15]} 4. Qa4+ {[%emt 0:01:30]} Nd7 {[%emt 1:31:50]} 5. g3 {[%emt 0:00:30]} c5 {[%emt 0:00:00]} 6. Bg2 {[%emt 0:00:00] [#] D21: Queen's Gambit Accepted: 3 Nf3 sidelines.} cxd4 $146 {[%emt 0:00:00]} ({Predecessor:} 6... a6 7. Qxc4 b5 8. Qc2 Bb7 9. O-O Rc8 10. dxc5 Bxc5 11. Qd3 Ngf6 12. Nc3 b4 {1-0 (33) Horvath,J (2525)-Blatny,P (2510) Austria 1991}) 7. Nxd4 {[%emt 0:01:00]} Bc5 {[%emt 0:01:30]} 8. Qxc4 {[%emt 0:00:00] White is slightly better.} Qb6 {[%emt 0:00:00]} 9. e3 {[%emt 0:01:00]} Ngf6 {[%emt 0:01:00]} 10. O-O {[%emt 0:00:00]} O-O {[%emt 0:00:00]} 11. Nb3 Be7 $1 {[%emt 0:00:00]} 12. e4 Ne5 {[%emt 0:01:30]} 13. Qe2 {[%emt 0:02:00]} Bd7 {[%emt 0:00:00]} 14. Nc3 {Inhibits Bb5.} Rac8 {[%emt 0:00:00][%cal Oc8c3]} 15. Be3 Qb4 {[%emt 0:00:00]} 16. Rfd1 Qc4 {[%emt 0:00:00]} (16... Ba4 $14) 17. Qxc4 (17. Bd4 $1 $18 {[%cal Rd4e5]}) 17... Nxc4 $16 {[%emt 0:00:00]} 18. e5 $1 Nxe5 {[%emt 0:00:00]} (18... Nd5 $16) 19. Bd4 $1 $18 {[%emt 0:00:00]} Neg4 20. h3 {[%emt 0:00:00][%cal Bh2h3,Bh3h4,Bh4g5][%mdl 32]} e5 {[%emt 0:00:00]} 21. Bxa7 {[%emt 0:00:00]} Nh6 {[%emt 0:00:00]} 22. g4 (22. Bxb7 Rc7 23. Na5 Bb4 $14) 22... g5 {[%emt 0:00:32]} 23. h4 (23. Bxb7 Rc7 $18) 23... Bxg4 {[%emt 0:00:15]} 24. hxg5 {[%emt 0:00:00]} (24. f3 $6 gxh4 25. fxg4 Nhxg4 $16) 24... Bxd1 {[%emt 0:00:30]} 25. Rxd1 {[%emt 0:06:00]} Bb4 {[%emt 0:01:24]} (25... Nhg4 $142 26. gxf6 Nxf6) 26. gxf6 {[%emt 0:00:00]} Bxc3 {[%emt 0:00:30]} 27. bxc3 {[%emt 0:00:00]} Rxc3 {[%emt 0:02:18]} 28. Rd7 {[%emt 0:00:00]} ({Don't take} 28. Bxb7 $6 Rc2 29. Rd2 Rxd2 30. Nxd2 Rd8 $18) (28. Bc5 $18 Rb8 29. Be4) 28... Ng4 $16 29. Rxb7 {[%emt 0:00:00] White is more active.} Rd8 $2 {[#]} (29... Nxf6 $16 30. Bb8 Ng4) 30. Rb8 $2 {[%emt 0:00:00]} (30. Bd5 $1 $18 {[%cal Rd5f7][%mdl 512]}) 30... Rxb8 $11 {[%emt 0:01:30]} 31. Bxb8 {[%emt 0:00:00]} Rc2 {[%emt 0:01:06]} 32. a4 {[%emt 0:00:00][%cal Ba2a4,Ba4a5,Ba5a6,Ba6a7][%mdl 32]} (32. f3 $5 {[%cal Rf3g4]} Nxf6 33. Bxe5 $16) 32... Rb2 {[%emt 0:00:14]} 33. Bd5 {[%emt 0:00:00] And now a5 would win.} Nxf6 {[%emt 0:02:11]} ({Black should play} 33... Rxf2 $14 34. Bb7 (34. Bxe5 $2 Rf5 $19) 34... Rb2) 34. Bc4 $18 {[%emt 0:04:30]} Nd7 {[%emt 0:00:00] [#]} 35. Ba7 {[%emt 0:00:30] Strongly threatening a5.} Kf8 {[%emt 0:00:16]} (35... Rc2 $16 36. Bb5 Rc3) 36. a5 {[%emt 0:00:00]} Ke7 {[%emt 0:01:14]} 37. a6 {[%emt 0:00:00] Be3 is the strong threat.} Kd6 $2 {[%emt 0:00:30] [#]} (37... Ra2 38. Be3 f5) 38. Bb8+ $1 {[%emt 0:00:00][%mdl 512]} Kc6 {[%emt 0:00:00]} 39. a7 {[%emt 0:00:00]} Nb6 {[%emt 0:00:00]} 40. Bxf7 {[%emt 0:00:00]} Kb7 {[%emt 0:01:30]} 41. Na5+ {[%emt 0:00:00]} (41. Nc5+ $142 Kc6 {[#]} 42. Na4 $1 {[%mdl 512]} Rb1+ 43. Kg2) 41... Ka8 {[%emt 0:00:00]} 42. Be8 {[%emt 0:00:00][%cal Re8c6]} Nd7 {[%emt 0:00:29]} 43. Bxd7 {[%emt 0:00:00] Weighted Error Value: White=0.24 (precise) /Black=0.55} 1-0